[Event "Late-Titled-Tuesday-Blitz-February-27-2024"]
[Site "Chess.com"]
[Date "2024.02.27"]
[Round "4"]
[White "NMJeevanK"]
[Black "bancsoo"]
[Result "0-1"]
[WhiteElo "2602"]
[BlackElo "2893"]
[TimeControl "180+1"]
[EndTime "14:42:03 PST"]
[Termination "bancsoo won by checkmate"]

1. e4 {[%clk 0:03:00.9]} 1... e5 {[%clk 0:02:59.7]} 2. Nf3 {[%clk 0:02:59]} 2...
d6 {[%clk 0:03:00.1]} 3. d4 {[%clk 0:02:58.4]} 3... exd4 {[%clk 0:03:01]} 4.
Nxd4 {[%clk 0:02:58.6]} 4... Nf6 {[%clk 0:03:01.8]} 5. Nc3 {[%clk 0:02:58.9]}
5... Be7 {[%clk 0:03:02.5]} 6. Be2 {[%clk 0:02:58.9]} 6... O-O {[%clk 0:03:03]}
7. O-O {[%clk 0:02:59.2]} 7... Re8 {[%clk 0:03:03.5]} 8. Re1 {[%clk 0:02:59.5]}
8... Bf8 {[%clk 0:03:04]} 9. Bf1 {[%clk 0:02:59.6]} 9... c6 {[%clk 0:03:03]} 10.
Bf4 {[%clk 0:02:54.2]} 10... Nbd7 {[%clk 0:02:57.6]} 11. Nb3 {[%clk 0:02:40.8]}
11... Ne5 {[%clk 0:02:55.3]} 12. h3 {[%clk 0:02:39.4]} 12... h6 {[%clk
0:02:54.6]} 13. Qd2 {[%clk 0:02:38.4]} 13... Qc7 {[%clk 0:02:51.8]} 14. Rad1
{[%clk 0:02:37.8]} 14... Be6 {[%clk 0:02:46.6]} 15. Nd4 {[%clk 0:02:36.6]} 15...
Bd7 {[%clk 0:02:46.3]} 16. a3 {[%clk 0:02:31.3]} 16... Rad8 {[%clk 0:02:46.3]}
17. Qe3 {[%clk 0:02:26.1]} 17... Bc8 {[%clk 0:02:39.4]} 18. Bg3 {[%clk
0:02:12.3]} 18... b5 {[%clk 0:02:24.5]} 19. Nf3 {[%clk 0:01:57.8]} 19... a5
{[%clk 0:02:07.6]} 20. Bh4 {[%clk 0:01:44.4]} 20... Be7 {[%clk 0:02:04]} 21.
Nxe5 {[%clk 0:01:38]} 21... dxe5 {[%clk 0:02:04]} 22. Qf3 {[%clk 0:01:28.1]}
22... Be6 {[%clk 0:01:51.9]} 23. Rxd8 {[%clk 0:01:21.7]} 23... Rxd8 {[%clk
0:01:52]} 24. Rd1 {[%clk 0:01:22.4]} 24... Ra8 {[%clk 0:01:34.3]} 25. Bg3 {[%clk
0:01:15.7]} 25... b4 {[%clk 0:01:32.3]} 26. axb4 {[%clk 0:01:14.9]} 26... axb4
{[%clk 0:01:33.2]} 27. Ne2 {[%clk 0:01:14.2]} 27... c5 {[%clk 0:01:24.2]} 28. b3
{[%clk 0:01:10.5]} 28... Ra2 {[%clk 0:01:21.2]} 29. Qd3 {[%clk 0:01:08.3]} 29...
c4 {[%clk 0:01:16.9]} 30. bxc4 {[%clk 0:00:52.7]} 30... Bxc4 {[%clk 0:01:16.9]}
31. Qf3 {[%clk 0:00:50.4]} 31... Rxc2 {[%clk 0:01:12.4]} 32. Nd4 {[%clk
0:00:49.8]} 32... Rc3 {[%clk 0:00:59.8]} 33. Qf5 {[%clk 0:00:47.9]} 33... Bxf1
{[%clk 0:00:59.7]} 34. Bxe5 {[%clk 0:00:43.1]} 34... Qb7 {[%clk 0:00:45.2]} 35.
Rxf1 {[%clk 0:00:30.1]} 35... Rc5 {[%clk 0:00:41.7]} 36. Nf3 {[%clk 0:00:27.4]}
36... Qxe4 {[%clk 0:00:38.5]} 37. Qxe4 {[%clk 0:00:24.1]} 37... Nxe4 {[%clk
0:00:39.2]} 38. Re1 {[%clk 0:00:24.3]} 38... f5 {[%clk 0:00:33.1]} 39. g4 {[%clk
0:00:23.9]} 39... g6 {[%clk 0:00:29.4]} 40. gxf5 {[%clk 0:00:24.1]} 40... gxf5
{[%clk 0:00:30.3]} 41. Bf4 {[%clk 0:00:22.3]} 41... Kh7 {[%clk 0:00:25.6]} 42.
Nd2 {[%clk 0:00:22.1]} 42... Bf6 {[%clk 0:00:16.1]} 43. Nxe4 {[%clk 0:00:12.1]}
43... fxe4 {[%clk 0:00:17]} 44. Rxe4 {[%clk 0:00:12.7]} 44... Rb5 {[%clk
0:00:17.4]} 45. Re1 {[%clk 0:00:10.7]} 45... b3 {[%clk 0:00:17.7]} 46. Bc1
{[%clk 0:00:08.9]} 46... b2 {[%clk 0:00:17.6]} 47. Bxb2 {[%clk 0:00:09.4]} 47...
Rxb2 {[%clk 0:00:18.3]} 48. Re3 {[%clk 0:00:08.4]} 48... Kg6 {[%clk 0:00:17.2]}
49. Kg2 {[%clk 0:00:08.4]} 49... Kf5 {[%clk 0:00:15.1]} 50. Rf3+ {[%clk
0:00:08.7]} 50... Kg6 {[%clk 0:00:15.3]} 51. Rg3+ {[%clk 0:00:09.2]} 51... Kf7
{[%clk 0:00:14.7]} 52. Rf3 {[%clk 0:00:09.9]} 52... Rb4 {[%clk 0:00:14.9]} 53.
Kg3 {[%clk 0:00:10.7]} 53... Ke6 {[%clk 0:00:14.6]} 54. Re3+ {[%clk 0:00:10.2]}
54... Kf5 {[%clk 0:00:13.7]} 55. Rf3+ {[%clk 0:00:11.1]} 55... Kg5 {[%clk
0:00:14.3]} 56. h4+ {[%clk 0:00:10.8]} 56... Kg6 {[%clk 0:00:13.7]} 57. h5+
{[%clk 0:00:09.7]} 57... Kg7 {[%clk 0:00:13.5]} 58. Rd3 {[%clk 0:00:09.8]} 58...
Be5+ {[%clk 0:00:11.5]} 59. Kh3 {[%clk 0:00:09.5]} 59... Kf6 {[%clk 0:00:11.9]}
60. Re3 {[%clk 0:00:06.9]} 60... Kf5 {[%clk 0:00:11.6]} 61. Rf3+ {[%clk
0:00:06.8]} 61... Bf4 {[%clk 0:00:12.1]} 62. Rc3 {[%clk 0:00:06.4]} 62... Rb5
{[%clk 0:00:10.7]} 63. f3 {[%clk 0:00:06.2]} 63... Kg5 {[%clk 0:00:10.8]} 64.
Rc4 {[%clk 0:00:05.7]} 64... Rf5 {[%clk 0:00:11]} 65. Re4 {[%clk 0:00:05.7]}
65... Kxh5 {[%clk 0:00:11.4]} 66. Re6 {[%clk 0:00:05.9]} 66... Kg5 {[%clk
0:00:11.5]} 67. Re8 {[%clk 0:00:06.3]} 67... Kg6 {[%clk 0:00:07.3]} 68. Rg8+
{[%clk 0:00:07.2]} 68... Kf7 {[%clk 0:00:07.5]} 69. Rh8 {[%clk 0:00:07.6]} 69...
Rf6 {[%clk 0:00:07.4]} 70. Kg4 {[%clk 0:00:07.8]} 70... Bg5 {[%clk 0:00:07.8]}
71. Rh7+ {[%clk 0:00:07.2]} 71... Kg6 {[%clk 0:00:08]} 72. Rb7 {[%clk
0:00:08.1]} 72... Rf4+ {[%clk 0:00:08.4]} 73. Kg3 {[%clk 0:00:08.6]} 73... Rc4
{[%clk 0:00:07.9]} 74. Rb6+ {[%clk 0:00:08.6]} 74... Kf7 {[%clk 0:00:07.8]} 75.
Ra6 {[%clk 0:00:08.5]} 75... Kg7 {[%clk 0:00:07.8]} 76. Kh3 {[%clk 0:00:08.9]}
76... Bf6 {[%clk 0:00:08.2]} 77. Ra5 {[%clk 0:00:08]} 77... Kg6 {[%clk
0:00:08.5]} 78. Kg3 {[%clk 0:00:08]} 78... h5 {[%clk 0:00:09]} 79. Kh3 {[%clk
0:00:08.6]} 79... Bg5 {[%clk 0:00:09.3]} 80. Ra6+ {[%clk 0:00:08.8]} 80... Bf6
{[%clk 0:00:09.3]} 81. Ra5 {[%clk 0:00:09.1]} 81... Rc3 {[%clk 0:00:09]} 82. Kg3
{[%clk 0:00:09]} 82... h4+ {[%clk 0:00:09.1]} 83. Kg4 {[%clk 0:00:09.5]} 83...
Rc4+ {[%clk 0:00:09.5]} 84. f4 {[%clk 0:00:10]} 84... Rc3 {[%clk 0:00:10.2]} 85.
Ra8 {[%clk 0:00:09.4]} 85... Rg3# {[%clk 0:00:09.8]} 0-1

[Event "Late-Titled-Tuesday-Blitz-February-27-2024"]
[Site "Chess.com"]
[Date "2024.02.27"]
[Round "4"]
[White "Rawnsdale"]
[Black "IraZyne"]
[Result "1-0"]
[WhiteElo "2518"]
[BlackElo "2349"]
[TimeControl "180+1"]
[EndTime "14:42:03 PST"]
[Termination "Rawnsdale won on time"]

1. e4 {[%clk 0:03:00.9]} 1... Nf6 {[%clk 0:02:59.2]} 2. e5 {[%clk 0:02:58]} 2...
Nd5 {[%clk 0:02:59.2]} 3. d4 {[%clk 0:02:58.6]} 3... d6 {[%clk 0:02:59.2]} 4. c4
{[%clk 0:02:56.9]} 4... Nb6 {[%clk 0:02:58.5]} 5. Nf3 {[%clk 0:02:57.8]} 5...
Bg4 {[%clk 0:02:57.5]} 6. exd6 {[%clk 0:02:56.6]} 6... exd6 {[%clk 0:02:57.1]}
7. Nc3 {[%clk 0:02:49.6]} 7... Be7 {[%clk 0:02:57]} 8. Be3 {[%clk 0:02:49.3]}
8... O-O {[%clk 0:02:56.5]} 9. b3 {[%clk 0:02:49.6]} 9... c6 {[%clk 0:02:55.8]}
10. Be2 {[%clk 0:02:49.7]} 10... d5 {[%clk 0:02:54.7]} 11. cxd5 {[%clk
0:02:45.6]} 11... Nxd5 {[%clk 0:02:53.6]} 12. Nxd5 {[%clk 0:02:45.3]} 12... Qxd5
{[%clk 0:02:53.3]} 13. O-O {[%clk 0:02:45.4]} 13... Nd7 {[%clk 0:02:51.7]} 14.
h3 {[%clk 0:02:45.1]} 14... Bh5 {[%clk 0:02:50.2]} 15. g4 {[%clk 0:02:31.9]}
15... Bg6 {[%clk 0:02:49.1]} 16. Bc4 {[%clk 0:02:31]} 16... Qd6 {[%clk
0:02:48.8]} 17. Qd2 {[%clk 0:02:17.7]} 17... Nb6 {[%clk 0:02:47.2]} 18. Ne5
{[%clk 0:02:12.9]} 18... Be4 {[%clk 0:02:40.6]} 19. Bf4 {[%clk 0:01:59]} 19...
Qd8 {[%clk 0:02:30.9]} 20. Rfe1 {[%clk 0:01:57.3]} 20... Bd5 {[%clk 0:02:30.3]}
21. Bd3 {[%clk 0:01:55.8]} 21... g6 {[%clk 0:02:23.3]} 22. Bh6 {[%clk
0:01:50.3]} 22... Re8 {[%clk 0:02:22.7]} 23. Qf4 {[%clk 0:01:46.4]} 23... f6
{[%clk 0:02:09.3]} 24. Nc4 {[%clk 0:01:44.4]} 24... Qd7 {[%clk 0:01:53.8]} 25.
Re3 {[%clk 0:01:25.3]} 25... g5 {[%clk 0:01:43.3]} 26. Qf5 {[%clk 0:01:02.2]}
26... Qxf5 {[%clk 0:01:42.5]} 27. gxf5 {[%clk 0:01:01.8]} 27... Kf7 {[%clk
0:01:37.3]} 28. Rae1 {[%clk 0:01:00.7]} 28... Bb4 {[%clk 0:01:36.7]} 29. Rxe8
{[%clk 0:00:57]} 29... Rxe8 {[%clk 0:01:36.4]} 30. Rxe8 {[%clk 0:00:57.7]} 30...
Kxe8 {[%clk 0:01:36.4]} 31. f4 {[%clk 0:00:56.8]} 31... gxf4 {[%clk 0:01:23.6]}
32. Bxf4 {[%clk 0:00:57.7]} 32... Kd7 {[%clk 0:01:13.3]} 33. Kf2 {[%clk
0:00:52.5]} 33... Nc8 {[%clk 0:01:11.5]} 34. Ne3 {[%clk 0:00:45.5]} 34... Bf7
{[%clk 0:01:09.2]} 35. Ng4 {[%clk 0:00:40.8]} 35... Be7 {[%clk 0:01:07.1]} 36.
Bg3 {[%clk 0:00:36.3]} 36... Nd6 {[%clk 0:01:06]} 37. Bh4 {[%clk 0:00:35.8]}
37... Ne8 {[%clk 0:01:04.4]} 38. Be4 {[%clk 0:00:28.4]} 38... Bd5 {[%clk
0:01:03.2]} 39. Ke3 {[%clk 0:00:26.7]} 39... Kd6 {[%clk 0:01:01.7]} 40. Bd3
{[%clk 0:00:24.7]} 40... Bg2 {[%clk 0:00:58.8]} 41. Nf2 {[%clk 0:00:22.7]} 41...
Ng7 {[%clk 0:00:56.4]} 42. Bg3+ {[%clk 0:00:20.9]} 42... Kd7 {[%clk 0:00:56.4]}
43. Bf4 {[%clk 0:00:21.2]} 43... Nh5 {[%clk 0:00:53.4]} 44. Bh2 {[%clk
0:00:19.8]} 44... a6 {[%clk 0:00:44.6]} 45. Be2 {[%clk 0:00:19.7]} 45... Ng7
{[%clk 0:00:43.6]} 46. h4 {[%clk 0:00:15.9]} 46... Nxf5+ {[%clk 0:00:42.8]} 47.
Kd3 {[%clk 0:00:13.7]} 47... Bd6 {[%clk 0:00:41.1]} 48. Bxd6 {[%clk 0:00:12.3]}
48... Nxd6 {[%clk 0:00:41.1]} 49. h5 {[%clk 0:00:12.6]} 49... h6 {[%clk
0:00:40.5]} 50. Ng4 {[%clk 0:00:13]} 50... Be4+ {[%clk 0:00:36.6]} 51. Ke3
{[%clk 0:00:12]} 51... f5 {[%clk 0:00:36.8]} 52. Nxh6 {[%clk 0:00:12.2]} 52...
Ke6 {[%clk 0:00:35.8]} 53. Kf4 {[%clk 0:00:12.5]} 53... Kf6 {[%clk 0:00:35.6]}
54. Ng8+ {[%clk 0:00:12.4]} 54... Kg7 {[%clk 0:00:35.1]} 55. Ne7 {[%clk
0:00:12.3]} 55... Kf6 {[%clk 0:00:35.2]} 56. Ng6 {[%clk 0:00:11.4]} 56... Nf7
{[%clk 0:00:34.3]} 57. Ne5 {[%clk 0:00:10.7]} 57... Nh6 {[%clk 0:00:33.2]} 58.
a3 {[%clk 0:00:09.3]} 58... Bc2 {[%clk 0:00:32]} 59. b4 {[%clk 0:00:09.6]} 59...
Bb3 {[%clk 0:00:29.1]} 60. Nd7+ {[%clk 0:00:09.4]} 60... Ke7 {[%clk 0:00:27.4]}
61. Nc5 {[%clk 0:00:09.6]} 61... Bd5 {[%clk 0:00:24.9]} 62. Nxb7 {[%clk
0:00:09.8]} 62... Bf7 {[%clk 0:00:22.5]} 63. Nc5 {[%clk 0:00:09.6]} 63... Ng8
{[%clk 0:00:18.5]} 64. Nxa6 {[%clk 0:00:08.5]} 64... Nf6 {[%clk 0:00:18.5]} 65.
Nc5 {[%clk 0:00:08.1]} 65... Nxh5+ {[%clk 0:00:17.7]} 66. Bxh5 {[%clk
0:00:07.9]} 66... Bxh5 {[%clk 0:00:17.9]} 67. Kxf5 {[%clk 0:00:08.8]} 67... Kd6
{[%clk 0:00:18]} 68. Ke4 {[%clk 0:00:09]} 68... Bd1 {[%clk 0:00:17.5]} 69. Kd3
{[%clk 0:00:08.2]} 69... Bf3 {[%clk 0:00:15.8]} 70. Kc3 {[%clk 0:00:09.1]} 70...
Bd5 {[%clk 0:00:15.6]} 71. a4 {[%clk 0:00:09.5]} 71... Kc7 {[%clk 0:00:15]} 72.
a5 {[%clk 0:00:09.6]} 72... Bg2 {[%clk 0:00:13.3]} 73. Ne6+ {[%clk 0:00:07.7]}
73... Kb7 {[%clk 0:00:11.6]} 74. Nf4 {[%clk 0:00:07.8]} 74... Be4 {[%clk
0:00:09.2]} 75. Nd3 {[%clk 0:00:07.4]} 75... Bd5 {[%clk 0:00:05.7]} 76. Nc5+
{[%clk 0:00:07.7]} 76... Ka7 {[%clk 0:00:05.7]} 77. Kd2 {[%clk 0:00:08.1]} 77...
Bf3 {[%clk 0:00:05]} 78. Ke3 {[%clk 0:00:08.6]} 78... Bg2 {[%clk 0:00:04.6]} 79.
Kf4 {[%clk 0:00:09.2]} 79... Bh1 {[%clk 0:00:04.7]} 80. Ke5 {[%clk 0:00:09.8]}
80... Bg2 {[%clk 0:00:05.1]} 81. Kd6 {[%clk 0:00:10.7]} 81... Bf3 {[%clk
0:00:04.8]} 82. Ne6 {[%clk 0:00:10.3]} 82... Ka6 {[%clk 0:00:03.4]} 83. Nc7+
{[%clk 0:00:08.8]} 83... Kb7 {[%clk 0:00:03.1]} 84. d5 {[%clk 0:00:09.2]} 84...
cxd5 {[%clk 0:00:02.3]} 85. Nxd5 {[%clk 0:00:10.1]} 85... Ka6 {[%clk 0:00:02]}
86. Kc5 {[%clk 0:00:10.4]} 1-0

[Event "Late-Titled-Tuesday-Blitz-February-27-2024"]
[Site "Chess.com"]
[Date "2024.02.27"]
[Round "4"]
[White "vi_pranav"]
[Black "Sargsyan_Shant"]
[Result "1/2-1/2"]
[WhiteElo "3112"]
[BlackElo "2916"]
[TimeControl "180+1"]
[EndTime "14:42:12 PST"]
[Termination "Game drawn by repetition"]

1. d4 {[%clk 0:03:00.9]} 1... d5 {[%clk 0:02:57.3]} 2. Nc3 {[%clk 0:03:00.8]}
2... c6 {[%clk 0:02:55.5]} 3. Bf4 {[%clk 0:03:00.6]} 3... Bf5 {[%clk 0:02:53.9]}
4. e3 {[%clk 0:03:00.3]} 4... e6 {[%clk 0:02:53.8]} 5. f3 {[%clk 0:02:57.6]}
5... Bd6 {[%clk 0:02:51.2]} 6. Nge2 {[%clk 0:02:51.2]} 6... h6 {[%clk
0:02:47.9]} 7. g4 {[%clk 0:02:45.6]} 7... Bh7 {[%clk 0:02:48]} 8. h4 {[%clk
0:02:46.1]} 8... Ne7 {[%clk 0:02:40.9]} 9. Ng3 {[%clk 0:02:41.6]} 9... Bxf4
{[%clk 0:02:40.2]} 10. exf4 {[%clk 0:02:41.8]} 10... Nd7 {[%clk 0:02:26.5]} 11.
Qd2 {[%clk 0:02:37.8]} 11... b5 {[%clk 0:02:25.2]} 12. Kf2 {[%clk 0:02:26.3]}
12... b4 {[%clk 0:02:23.8]} 13. Na4 {[%clk 0:02:25.9]} 13... Qa5 {[%clk
0:02:21.5]} 14. b3 {[%clk 0:02:21.7]} 14... c5 {[%clk 0:02:22]} 15. a3 {[%clk
0:02:17.1]} 15... cxd4 {[%clk 0:01:29.7]} 16. axb4 {[%clk 0:01:52.2]} 16... Qc7
{[%clk 0:01:28.9]} 17. Qxd4 {[%clk 0:01:51.8]} 17... O-O {[%clk 0:01:29]} 18. c4
{[%clk 0:01:19.7]} 18... Rab8 {[%clk 0:01:28.4]} 19. b5 {[%clk 0:01:16.2]} 19...
a6 {[%clk 0:01:24.9]} 20. Be2 {[%clk 0:01:13.9]} 20... dxc4 {[%clk 0:01:02.6]}
21. bxc4 {[%clk 0:01:13]} 21... Rfd8 {[%clk 0:01:02.7]} 22. Qe3 {[%clk
0:01:07.4]} 22... axb5 {[%clk 0:01:01.5]} 23. cxb5 {[%clk 0:00:49.3]} 23... Nd5
{[%clk 0:01:01.7]} 24. Qd4 {[%clk 0:00:49.6]} 24... Nxf4 {[%clk 0:00:44.4]} 25.
Rhc1 {[%clk 0:00:31.9]} 25... Qe5 {[%clk 0:00:44.4]} 26. Rd1 {[%clk 0:00:19.5]}
26... Nh3+ {[%clk 0:00:44.8]} 27. Kg2 {[%clk 0:00:19.5]} 27... Nf4+ {[%clk
0:00:45.4]} 28. Kf2 {[%clk 0:00:19.9]} 28... Bd3 {[%clk 0:00:35]} 29. Qxe5
{[%clk 0:00:10.3]} 29... Nxe5 {[%clk 0:00:35.9]} 30. b6 {[%clk 0:00:10.8]} 30...
g5 {[%clk 0:00:20.3]} 31. hxg5 {[%clk 0:00:10.6]} 31... hxg5 {[%clk 0:00:21.2]}
32. Bxd3 {[%clk 0:00:06.3]} 32... Nexd3+ {[%clk 0:00:21]} 33. Ke3 {[%clk
0:00:03.9]} 33... Rd5 {[%clk 0:00:17.9]} 34. Ne4 {[%clk 0:00:03.9]} 34... Kg7
{[%clk 0:00:17.1]} 35. Rh1 {[%clk 0:00:02.2]} 35... f5 {[%clk 0:00:16.3]} 36.
gxf5 {[%clk 0:00:02.2]} 36... exf5 {[%clk 0:00:17.2]} 37. Nac3 {[%clk
0:00:02.7]} 37... Re5 {[%clk 0:00:16.1]} 38. Ra7+ {[%clk 0:00:02.7]} 38... Kg6
{[%clk 0:00:15.5]} 39. Rah7 {[%clk 0:00:02.3]} 39... Ng2+ {[%clk 0:00:02.4]} 40.
Kxd3 {[%clk 0:00:02.4]} 40... fxe4+ {[%clk 0:00:03.1]} 41. fxe4 {[%clk 0:00:03]}
41... Nh4 {[%clk 0:00:02.9]} 42. Rd7 {[%clk 0:00:01.7]} 42... Rxb6 {[%clk
0:00:03.1]} 43. Nd5 {[%clk 0:00:02.4]} 43... Rb3+ {[%clk 0:00:03.5]} 44. Kd4
{[%clk 0:00:02.6]} 44... Re8 {[%clk 0:00:03.7]} 45. Rd6+ {[%clk 0:00:02.6]}
45... Kg7 {[%clk 0:00:04.4]} 46. Rd7+ {[%clk 0:00:02.5]} 46... Kg6 {[%clk
0:00:04.8]} 47. Rd6+ {[%clk 0:00:02.7]} 47... Kg7 {[%clk 0:00:04.3]} 48. Kc4
{[%clk 0:00:03.2]} 48... Rb7 {[%clk 0:00:02.7]} 49. Nf6 {[%clk 0:00:03.5]} 49...
Rc8+ {[%clk 0:00:03]} 50. Kd4 {[%clk 0:00:03.9]} 50... Nf3+ {[%clk 0:00:03.4]}
51. Ke3 {[%clk 0:00:04.4]} 51... Nh4 {[%clk 0:00:03.9]} 52. Nh5+ {[%clk
0:00:04.4]} 52... Kh7 {[%clk 0:00:04.3]} 53. Nf6+ {[%clk 0:00:04.7]} 53... Kg7
{[%clk 0:00:04.7]} 54. Nd5 {[%clk 0:00:03.5]} 54... Rb3+ {[%clk 0:00:04.3]} 55.
Ke2 {[%clk 0:00:01.8]} 55... Rc2+ {[%clk 0:00:04]} 56. Kd1 {[%clk 0:00:02.5]}
56... Ra2 {[%clk 0:00:03.6]} 57. Rd7+ {[%clk 0:00:02.9]} 57... Kg6 {[%clk
0:00:03.6]} 58. Rd6+ {[%clk 0:00:03.1]} 58... Kf7 {[%clk 0:00:03.2]} 59. Rf1+
{[%clk 0:00:02.7]} 59... Kg7 {[%clk 0:00:04]} 60. Rd7+ {[%clk 0:00:02.8]} 60...
Kg6 {[%clk 0:00:04.5]} 61. Rd6+ {[%clk 0:00:03.1]} 61... Kg7 {[%clk 0:00:03.8]}
62. Rd7+ {[%clk 0:00:03.3]} 62... Kh6 {[%clk 0:00:03]} 63. Rd6+ {[%clk
0:00:03.1]} 63... Ng6 {[%clk 0:00:02.8]} 64. Rh1+ {[%clk 0:00:02.4]} 64... Kg7
{[%clk 0:00:03.4]} 65. Rd7+ {[%clk 0:00:02.9]} 65... Kf8 {[%clk 0:00:03.6]} 66.
Rd8+ {[%clk 0:00:01.5]} 66... Kf7 {[%clk 0:00:02.5]} 67. Rf1+ {[%clk 0:00:02]}
67... Kg7 {[%clk 0:00:02.8]} 68. Rd7+ {[%clk 0:00:02.1]} 68... Kh6 {[%clk
0:00:02.9]} 69. Rh1+ {[%clk 0:00:02.5]} 69... Nh4 {[%clk 0:00:03.7]} 70. Rd6+
{[%clk 0:00:02.9]} 70... Kg7 {[%clk 0:00:04]} 71. Rd7+ {[%clk 0:00:03.2]} 71...
Kg6 {[%clk 0:00:03.4]} 72. Rd6+ {[%clk 0:00:03.5]} 72... Kg7 {[%clk 0:00:03.1]}
1/2-1/2

[Event "Late-Titled-Tuesday-Blitz-February-27-2024"]
[Site "Chess.com"]
[Date "2024.02.27"]
[Round "4"]
[White "Sanan_Sjugirov"]
[Black "GMVignirVatnar"]
[Result "1-0"]
[WhiteElo "2978"]
[BlackElo "2724"]
[TimeControl "180+1"]
[EndTime "14:42:16 PST"]
[Termination "Sanan_Sjugirov won by resignation"]

1. e4 {[%clk 0:03:00.9]} 1... e5 {[%clk 0:02:59.6]} 2. Nf3 {[%clk 0:03:00.8]}
2... Nc6 {[%clk 0:02:59.8]} 3. Bb5 {[%clk 0:03:01.4]} 3... Nf6 {[%clk
0:02:59.5]} 4. d3 {[%clk 0:03:01.4]} 4... Bc5 {[%clk 0:02:59.4]} 5. Bxc6 {[%clk
0:03:02]} 5... dxc6 {[%clk 0:02:59]} 6. Nbd2 {[%clk 0:03:02.7]} 6... Qe7 {[%clk
0:02:56.4]} 7. Nc4 {[%clk 0:02:56]} 7... Bd6 {[%clk 0:02:54.8]} 8. h3 {[%clk
0:02:42]} 8... b5 {[%clk 0:02:49.7]} 9. Ne3 {[%clk 0:02:37.8]} 9... Be6 {[%clk
0:02:43.8]} 10. O-O {[%clk 0:02:36.2]} 10... Nd7 {[%clk 0:02:42.7]} 11. a4
{[%clk 0:02:33.3]} 11... O-O {[%clk 0:02:37.9]} 12. Nf5 {[%clk 0:02:13.1]} 12...
Qf6 {[%clk 0:02:03.9]} 13. Bg5 {[%clk 0:02:03.7]} 13... Qg6 {[%clk 0:02:02.9]}
14. N5h4 {[%clk 0:01:30.3]} 14... Qh5 {[%clk 0:02:02.8]} 15. g4 {[%clk 0:01:31]}
15... Bxg4 {[%clk 0:02:03.4]} 16. hxg4 {[%clk 0:01:31.9]} 16... Qxg4+ {[%clk
0:02:03.9]} 17. Ng2 {[%clk 0:01:32.7]} 17... f5 {[%clk 0:01:58.4]} 18. Be3
{[%clk 0:01:25.7]} 18... f4 {[%clk 0:01:09.7]} 19. Bd2 {[%clk 0:01:24.8]} 19...
h5 {[%clk 0:00:53.2]} 20. Nh2 {[%clk 0:01:20.6]} 20... Qg5 {[%clk 0:00:53.6]}
21. Kh1 {[%clk 0:01:13.2]} 21... Nf6 {[%clk 0:00:51.2]} 22. Qf3 {[%clk
0:00:43.8]} 22... Qh6 {[%clk 0:00:50.2]} 23. Nh4 {[%clk 0:00:41.4]} 23... g5
{[%clk 0:00:47.3]} 24. Nf5 {[%clk 0:00:41.4]} 24... Qg6 {[%clk 0:00:47.9]} 25.
Qh3 {[%clk 0:00:35.5]} 25... g4 {[%clk 0:00:32.6]} 26. Qh4 {[%clk 0:00:35.7]}
26... Kf7 {[%clk 0:00:32.9]} 27. Bc3 {[%clk 0:00:31.3]} 27... Ke6 {[%clk
0:00:32]} 28. Rae1 {[%clk 0:00:29.5]} 28... b4 {[%clk 0:00:31]} 29. Bd2 {[%clk
0:00:29.2]} 29... c5 {[%clk 0:00:28.9]} 30. Rg1 {[%clk 0:00:26.7]} 30... Ng8
{[%clk 0:00:23.8]} 31. Nf3 {[%clk 0:00:25.1]} 31... Nh6 {[%clk 0:00:22.3]} 32.
Qg5 {[%clk 0:00:18.6]} 32... Rf6 {[%clk 0:00:16.2]} 33. Qxg6 {[%clk 0:00:11.9]}
33... Rxg6 {[%clk 0:00:17.1]} 34. N3h4 {[%clk 0:00:12.5]} 34... Rf6 {[%clk
0:00:17.5]} 35. Nxh6 {[%clk 0:00:12.3]} 35... Rxh6 {[%clk 0:00:18.4]} 36. Nf5
{[%clk 0:00:12.4]} 36... Rf6 {[%clk 0:00:19]} 37. Kg2 {[%clk 0:00:12.1]} 37...
Rh8 {[%clk 0:00:09.9]} 38. Rh1 {[%clk 0:00:12.5]} 38... Be7 {[%clk 0:00:09]} 39.
Ng7+ {[%clk 0:00:08.3]} 39... Kf7 {[%clk 0:00:08.4]} 40. Nf5 {[%clk 0:00:08.3]}
40... Kf8 {[%clk 0:00:05.8]} 41. Rh2 {[%clk 0:00:08.2]} 41... Rf7 {[%clk
0:00:06.2]} 42. Reh1 {[%clk 0:00:08.3]} 42... Rfh7 {[%clk 0:00:06.5]} 43. c3
{[%clk 0:00:07]} 43... b3 {[%clk 0:00:04]} 44. f3 {[%clk 0:00:06.5]} 44... g3
{[%clk 0:00:02.5]} 45. Rh3 {[%clk 0:00:07.1]} 45... Bf6 {[%clk 0:00:03]} 46. d4
{[%clk 0:00:07.1]} 46... cxd4 {[%clk 0:00:02.3]} 47. cxd4 {[%clk 0:00:08]} 47...
Kf7 {[%clk 0:00:02.8]} 48. Bc3 {[%clk 0:00:08.1]} 48... exd4 {[%clk 0:00:01.4]}
49. Nxd4 {[%clk 0:00:08.2]} 49... c5 {[%clk 0:00:01.1]} 50. Nf5 {[%clk
0:00:08.2]} 50... Bxc3 {[%clk 0:00:02]} 51. bxc3 {[%clk 0:00:08.8]} 51... Kf6
{[%clk 0:00:02.8]} 52. Nd6 {[%clk 0:00:08.6]} 52... Ke5 {[%clk 0:00:02.7]} 53.
Nc4+ {[%clk 0:00:09.1]} 53... Ke6 {[%clk 0:00:03.4]} 54. Rh4 {[%clk 0:00:09.6]}
54... Rb7 {[%clk 0:00:03.2]} 55. Rxf4 {[%clk 0:00:09.3]} 55... h4 {[%clk
0:00:03.5]} 56. Rfxh4 {[%clk 0:00:08.4]} 56... Rxh4 {[%clk 0:00:03.2]} 57. Rxh4
{[%clk 0:00:09.3]} 57... b2 {[%clk 0:00:03.9]} 58. Nxb2 {[%clk 0:00:09.9]} 58...
Rxb2+ {[%clk 0:00:04.6]} 59. Kxg3 {[%clk 0:00:10.6]} 59... Rb3 {[%clk
0:00:05.2]} 60. Rh6+ {[%clk 0:00:11.2]} 60... Ke5 {[%clk 0:00:05.6]} 61. Rh5+
{[%clk 0:00:11.6]} 61... Kd6 {[%clk 0:00:05.8]} 62. Rh6+ {[%clk 0:00:12.1]}
62... Ke5 {[%clk 0:00:06]} 63. c4 {[%clk 0:00:11.6]} 63... Rb4 {[%clk
0:00:05.3]} 64. Ra6 {[%clk 0:00:12.2]} 64... Rxc4 {[%clk 0:00:04.5]} 65. Rxa7
{[%clk 0:00:12.8]} 65... Rc1 {[%clk 0:00:05.4]} 66. Re7+ {[%clk 0:00:12.2]}
66... Kd6 {[%clk 0:00:05.8]} 67. Re8 {[%clk 0:00:12.3]} 67... c4 {[%clk
0:00:05.6]} 68. Rc8 {[%clk 0:00:12.6]} 68... Kd7 {[%clk 0:00:04.5]} 69. Rc5
{[%clk 0:00:12.6]} 69... Kd6 {[%clk 0:00:05.2]} 70. Rd5+ {[%clk 0:00:13.1]}
70... Ke6 {[%clk 0:00:05.9]} 71. Kf4 {[%clk 0:00:13.2]} 71... Ra1 {[%clk
0:00:05.4]} 72. Re5+ {[%clk 0:00:11.9]} 72... Kd6 {[%clk 0:00:05.5]} 73. Rd5+
{[%clk 0:00:12.6]} 73... Kc6 {[%clk 0:00:05.9]} 74. Ke5 {[%clk 0:00:12.1]} 74...
Rxa4 {[%clk 0:00:04.2]} 75. Rd8 {[%clk 0:00:11.1]} 75... Kc7 {[%clk 0:00:04.1]}
76. Rd1 {[%clk 0:00:10.3]} 76... Ra5+ {[%clk 0:00:04.2]} 77. Kd4 {[%clk
0:00:09.9]} 77... Ra3 {[%clk 0:00:04.2]} 78. f4 {[%clk 0:00:09.3]} 78... Rf3
{[%clk 0:00:04.1]} 79. f5 {[%clk 0:00:09.6]} 79... Kd6 {[%clk 0:00:04.7]} 80.
Ra1 {[%clk 0:00:08.8]} 80... c3 {[%clk 0:00:03.6]} 81. Ra6+ {[%clk 0:00:08.5]}
81... Ke7 {[%clk 0:00:04.1]} 82. Rc6 {[%clk 0:00:08]} 82... Kd7 {[%clk
0:00:01.6]} 83. Rxc3 {[%clk 0:00:08]} 83... Rf1 {[%clk 0:00:02.4]} 84. Ke5
{[%clk 0:00:08.5]} 84... Re1 {[%clk 0:00:02.8]} 85. Rd3+ {[%clk 0:00:08.8]}
85... Kc6 {[%clk 0:00:02.7]} 86. Rh3 {[%clk 0:00:09.7]} 86... Ra1 {[%clk
0:00:01.5]} 87. f6 {[%clk 0:00:09.7]} 87... Kc5 {[%clk 0:00:02.4]} 88. f7 {[%clk
0:00:09.5]} 88... Rf1 {[%clk 0:00:03.3]} 89. Ke6 {[%clk 0:00:09.5]} 89... Kd4
{[%clk 0:00:03.4]} 90. Ke7 {[%clk 0:00:09.6]} 90... Kxe4 {[%clk 0:00:03.6]} 91.
f8=Q {[%clk 0:00:10]} 1-0